fUSD/lending_fUSD_20251223
["ID","MTS","AMOUNT","RATE_DAILY","PERIOD"]
[399541242,1766466644730,-544.0,0.00021671,2]
[399541243,1766466644739,-659.46,0.00021699,2]
[399541244,1766466644748,-659.46,0.00021699,2]
[399541245,1766466644757,-657.64,0.00021699,2]
[399541246,1766466644767,-500.0,0.00021699,2]
[399541247,1766466644780,-500.0,0.00021699,2]
[399541248,1766466644790,-272.46378967,0.00021699,2]
[399541249,1766466644799,-500.0,0.00021699,2]
[399541250,1766466644808,-500.0,0.00021699,2]
[399541251,1766466644817,-500.0,0.00021699,2]
[399541252,1766466644827,-500.0,0.00021699,2]
[399541253,1766466644836,-252.61614044,0.00021699,2]
[399541254,1766466644846,-500.0,0.00021699,2]
[399541255,1766466644859,-150.0,0.00021699,2]
[399541256,1766466644868,-500.0,0.00021699,2]
[399541257,1766466644879,-255.7741324,0.00021699,2]
[399541258,1766466644889,-500.0,0.00021699,2]
[399541259,1766466644899,-544.0,0.00021699,2]
[399541260,1766466644908,-500.0,0.00021726,2]
[399541261,1766466644918,-500.0,0.00021726,2]
[399541262,1766466644927,-500.0,0.00021726,2]
[399541263,1766466644936,-500.0,0.00021726,2]
[399541264,1766466644947,-500.0,0.00021726,2]
[399541265,1766466644956,-500.0,0.00021726,2]
[399541266,1766466644966,-376.72159482,0.00021726,2]
[399541267,1766466644975,-150.0,0.00021726,2]
[399541268,1766466644985,-500.0,0.00021726,2]
[399541269,1766466645000,-500.0,0.00021726,2]
[399541270,1766466645009,-544.0,0.00021726,2]
[399541271,1766466645018,-500.0,0.00021754,2]
[399541272,1766466645029,-500.0,0.00021754,2]
[399541273,1766466645038,-500.0,0.00021754,2]
[399541274,1766466645047,-500.0,0.00021754,2]
[399541275,1766466645057,-500.0,0.00021754,2]
[399541276,1766466645068,-500.0,0.00021754,2]
[399541277,1766466645077,-150.0,0.00021754,2]
[399541278,1766466645087,-500.0,0.00021754,2]
[399541279,1766466645096,-500.0,0.00021754,2]
[399541280,1766466645106,-544.0,0.00021754,2]
[399541281,1766466645116,-500.0,0.00021781,2]
[399541282,1766466645126,-500.0,0.00021781,2]
[399541283,1766466645136,-500.0,0.00021781,2]
[399541284,1766466645146,-500.0,0.00021781,2]
[399541285,1766466645155,-500.0,0.00021781,2]
[399541286,1766466645165,-500.0,0.00021781,2]
[399541287,1766466645176,-167.77127482,0.00021781,2]
[399541288,1766466645187,-500.0,0.00021781,2]
[399541289,1766466645196,-500.0,0.00021781,2]
[399541290,1766466645206,-544.0,0.00021781,2]
[399541291,1766466645216,-500.0,0.00021808,2]
[399541292,1766466645225,-500.0,0.00021808,2]
[399541293,1766466645235,-394.24474848,0.00021808,2]
[399541294,1766466645244,-500.0,0.00021808,2]
[399541295,1766466645253,-500.0,0.00021808,2]
[399541296,1766466645262,-500.0,0.00021808,2]
[399541297,1766466645272,-500.0,0.00021808,2]
[399541298,1766466645285,-483.95186785,0.00021808,2]
[399541299,1766466645295,-544.0,0.00021808,2]
[399541300,1766466645305,-500.0,0.00021836,2]
[399541301,1766466645314,-500.0,0.00021836,2]
[399541302,1766466645324,-500.0,0.00021836,2]
[399541303,1766466645333,-500.0,0.00021836,2]
[399541304,1766466645342,-500.0,0.00021836,2]
[399541305,1766466645352,-500.0,0.00021836,2]
[399541306,1766466645362,-544.0,0.00021836,2]
[399541307,1766466645371,-500.0,0.00021863,2]
[399541308,1766466645381,-500.0,0.00021863,2]
[399541309,1766466645391,-500.0,0.00021863,2]
[399541310,1766466645400,-500.0,0.00021863,2]
[399541311,1766466645410,-500.0,0.00021863,2]
[399541312,1766466645419,-500.0,0.00021863,2]
[399541313,1766466645429,-544.0,0.00021863,2]
[399541314,1766466645438,-796.19226871,0.00021873,2]
[399541315,1766466645448,-2000.0,0.0002189,2]
[399541316,1766466645457,-547.79470444,0.00021891,2]
[399541317,1766466645467,-500.0,0.00021891,2]
[399541318,1766466645476,-500.0,0.00021891,2]
[399541319,1766466645486,-500.0,0.00021891,2]
[399541320,1766466645496,-500.0,0.00021891,2]
[399541321,1766466645505,-500.0,0.00021891,2]
[399541322,1766466645514,-544.0,0.00021891,2]
[399541323,1766466645525,-223.97693797,0.000219,2]
[399541324,1766466645538,-186.82,0.000219,6]
[399541325,1766466645548,-150.93,0.00021908,2]
[399541326,1766466645558,-500.0,0.00021918,2]
[399541327,1766466645568,-500.0,0.00021918,2]
[399541328,1766466645577,-500.0,0.00021918,2]
[399541329,1766466645587,-500.0,0.00021918,2]
[399541330,1766466645597,-500.0,0.00021918,2]
[399541331,1766466645606,-544.0,0.00021918,2]
[399541332,1766466645616,-500.0,0.00021918,2]
[399541333,1766466645626,-500.0,0.00021918,2]
[399541334,1766466645636,-354.25129276,0.00021918,2]
[399541335,1766466645646,-500.0,0.00021945,2]
[399541336,1766466645656,-500.0,0.00021945,2]
[399541337,1766466645666,-500.0,0.00021945,2]
[399541338,1766466645676,-407.86837201,0.00021945,2]
[399541339,1766466645686,-500.0,0.00021945,2]
[399541340,1766466645696,-544.0,0.00021945,2]
[399541341,1766466645706,-150.93,0.00021964,2]
[399541342,1766466645716,-500.0,0.0002197,2]
[399541343,1766466645726,-500.0,0.00021973,2]
[399541344,1766466645739,-500.0,0.00021973,2]
[399541345,1766466645749,-500.0,0.00021973,2]
[399541346,1766466645759,-183.30569166,0.00021973,2]
[399541347,1766466645768,-544.0,0.00021973,2]
[399541348,1766466645783,-48801.9281595,0.00021974,2]
[399541349,1766466645794,-59354.2849035,0.00021974,2]
[399541350,1766466645804,-3267.9682539,0.00021984,2]
[399541351,1766466645815,-150.93,0.0002199,2]
[399541352,1766466645827,-150.93,0.0002199,2]
[399541354,1766466645837,-150.93,0.0002199,2]
[399541356,1766466645847,-150.93,0.0002199,2]
[399541357,1766466645859,-150.93,0.0002199,2]
[399541358,1766466645868,-378.41057912,0.00021999,2]
[399541359,1766466645878,-161.39223844,0.00021999,2]
[399541360,1766466645887,-578.20924308,0.00021999,4]
[399541361,1766466645898,-599.60298507,0.00021999,4]
[399541362,1766466645907,-621.78829552,0.00021999,4]
[399541363,1766466645917,-644.79446246,0.00021999,4]
[399541364,1766466645927,-668.65185757,0.00021999,4]
[399541365,1766466645939,-250.84071545,0.00021999,4]
[399541366,1766466645949,-225.31,0.00022,21]
[399541367,1766466645959,-333186.60787301,0.00022,4]
[399541368,1766466645968,-163.53,0.00022,2]
[399541369,1766466645978,-150.0,0.00022,2]
[399541370,1766466645988,-878.98,0.00022,14]
[399541371,1766466645998,-465.729118,0.00022,2]
[399541372,1766466646008,-154.0,0.00022,2]
[399541373,1766466646018,-154.0,0.00022,2]
[399541374,1766466646029,-154.0,0.00022,2]
[399541375,1766466646039,-155.29267278,0.00022,2]
[399541376,1766466646049,-164.0,0.00022,2]
[399541377,1766466646058,-154.0,0.00022,2]
[399541378,1766466646068,-164.0,0.00022,2]
[399541379,1766466646078,-152.0,0.00022,2]
[399541380,1766466646087,-1256.0,0.00022,2]
[399541381,1766466646097,-154.0,0.00022,2]
[399541382,1766466646107,-164.0,0.00022,2]
[399541383,1766466646118,-152.0,0.00022,2]
[399541384,1766466646127,-286.28633932,0.00022,2]
[399541385,1766466646137,-172.8089718,0.00022,2]
[399541386,1766466646147,-154.0,0.00022,2]
[399541387,1766466646157,-152.0,0.00022,2]
[399541388,1766466646167,-152.0,0.00022,2]
[399541389,1766466646176,-154.0,0.00022,2]
[399541390,1766466646187,-152.0,0.00022,2]
[399541391,1766466646197,-154.0,0.00022,2]
[399541392,1766466646207,-154.0,0.00022,2]
[399541393,1766466646217,-152.0,0.00022,2]
[399541394,1766466646227,-153.84928669,0.00022,2]
[399541395,1766466646237,-152.0,0.00022,2]
[399541396,1766466646247,-222.28977506,0.00022,2]
[399541397,1766466646257,-152.0,0.00022,2]
[399541398,1766466646268,-152.0,0.00022,2]
[399541399,1766466646279,-294.63189932,0.00022,2]
[399541400,1766466646289,-180.03,0.00022,2]
[399541401,1766466646299,-620.76763019,0.00022,2]
[399541402,1766466646309,-500.0,0.00022,2]
[399541403,1766466646330,-500.0,0.00022,2]
[399541404,1766466646342,-544.0,0.00022,2]
[399541405,1766466646352,-344.0,0.00022028,2]
[399541406,1766466646363,-500.0,0.00022028,2]
[399541407,1766466646373,-544.0,0.00022028,2]
[399541408,1766466646383,-500.0,0.00022055,2]
[399541409,1766466646394,-544.0,0.00022055,2]
[399541410,1766466646405,-152.0,0.00022064,12]
[399541411,1766466646415,-500.0,0.00022082,2]
[399541412,1766466646425,-544.0,0.00022082,2]
[399541413,1766466646435,-500.0,0.0002211,2]
[399541414,1766466646445,-544.0,0.0002211,2]
[399541415,1766466646455,-312.7587784,0.00022137,2]
[399541416,1766466646465,-544.0,0.00022137,2]
[399541417,1766466646475,-1119.3570033,0.00022148,5]
[399541418,1766466646485,-1107.33484161,0.00022148,5]
[399541419,1766466646496,-1010.96684936,0.00022148,5]
[399541420,1766466646506,-1037.78611972,0.00022148,5]
[399541421,1766466646517,-1095.40634116,0.00022148,5]
[399541422,1766466646526,-1111.32938295,0.00022148,5]
[399541424,1766466646536,-1116.97091459,0.00022148,5]
[399541426,1766466646546,-1088.60446934,0.00022148,5]
[399541428,1766466646556,-1051.03325256,0.00022148,5]
[399541430,1766466646566,-1128.64669829,0.00022148,5]
[399541433,1766466646575,-1006.61507484,0.00022148,5]
[399541435,1766466646585,-1044.09487313,0.00022148,5]
[399541436,1766466646594,-1080.85412654,0.00022148,5]
[399541437,1766466646604,-1120.1596493,0.00022148,5]
[399541438,1766466646614,-1028.61838969,0.00022148,5]
[399541439,1766466646625,-1014.34946599,0.00022148,5]
[399541440,1766466646634,-1058.70463213,0.00022148,5]
[399541441,1766466646644,-1093.25514107,0.00022148,5]
[399541442,1766466646653,-1135.44052585,0.00022148,5]
[399541443,1766466646892,-1120.41066651,0.00022148,5]
[399541444,1766466646934,-1000.22991155,0.00022148,5]
[399541445,1766466646943,-1054.44691613,0.00022148,5]
[399541446,1766466646953,-1039.37250025,0.00022148,5]
[399541447,1766466646962,-1113.14113018,0.00022148,5]
[399541448,1766466646972,-1095.75114454,0.00022148,5]
[399541449,1766466646981,-1132.59283296,0.00022148,5]
[399541450,1766466646990,-1062.82080449,0.00022148,5]
[399541451,1766466647000,-1022.53526358,0.00022148,5]
[399541452,1766466647009,-1314.19880071,0.00022148,5]
[399541453,1766466647019,-544.0,0.00022165,2]
[399541454,1766466647028,-544.0,0.00022192,2]
[399541455,1766466647038,-544.0,0.00022219,2]
[399541456,1766466647047,-500.0,0.00022247,2]
[399541457,1766466647058,-544.0,0.00022247,2]
[399541458,1766466647068,-1098.0,0.00022272,2]
[399541459,1766466647077,-800.0,0.00022274,7]
[399541460,1766466647086,-1300.0,0.00022274,7]
[399541461,1766466647096,-556.25840165,0.00022274,2]
[399541462,1766466647105,-1335.39878039,0.00022302,2]
[399541463,1766466647115,-373.07297731,0.00022417,2]
[399541464,1766466647124,-666.72878,0.00022419,2]
[399541465,1766466647134,-825.65138265,0.00022421,2]
[399541466,1766466647143,-224.38,0.00022463,2]
[399541467,1766466647153,-630.0,0.000225,30]
[399541468,1766466647162,-152.0,0.00022509,13]
[399541469,1766466647173,-1300.0,0.00022548,7]
[399541470,1766466647182,-10000.0,0.00022558,2]
[399541471,1766466647192,-169.21,0.0002259,2]
[399541472,1766466647201,-24470.083785,0.000226,5]
[399541473,1766466647211,-324.5987684,0.000226,2]
[399541474,1766466647220,-2000.0,0.000226,2]
[399541475,1766466647230,-1326.0,0.00022621,2]
[399541476,1766466647240,-1227.098,0.00022621,2]
[399541477,1766466647250,-612.0,0.00022621,2]
[399541478,1766466647260,-1263.0,0.00022621,2]
[399541479,1766466647269,-518.0,0.00022621,2]
[399541480,1766466647279,-564.0,0.00022621,2]
[399541481,1766466647289,-2430.0,0.00022621,2]
[399541482,1766466647298,-659.46,0.00022658,2]
[399541483,1766466647307,-659.46,0.00022658,2]
[399541484,1766466647317,-659.46,0.00022658,2]
[399541485,1766466647327,-1318.92,0.00022658,2]
[399541486,1766466647336,-659.51,0.00022658,2]
[399541487,1766466647347,-152.0,0.00022755,4]
[399541488,1766466647356,-1000.0,0.00022904,2]
[399541489,1766466647366,-152.0,0.00022955,14]
[399541490,1766466647375,-866.14547742,0.00023,2]
[399541491,1766466647385,-150.0,0.00023,2]
[399541492,1766466647394,-400.0,0.00023,2]
[399541493,1766466647404,-6930.8,0.00023006,2]
[399541494,1766466647413,-800.0,0.00023064,8]
[399541495,1766466647423,-800.0,0.00023064,8]
[399541496,1766466647432,-800.0,0.00023064,8]
[399541497,1766466647442,-800.0,0.00023064,8]
[399541498,1766466647453,-800.0,0.00023064,8]
[399541499,1766466647462,-800.0,0.00023064,8]
[399541500,1766466647471,-800.0,0.00023064,8]
[399541501,1766466647480,-800.0,0.00023064,8]
[399541502,1766466647490,-1300.0,0.0002337,7]
[399541503,1766466647500,-1098.0,0.00023386,2]
[399541504,1766466647510,-152.0,0.000234,15]
[399541505,1766466647521,-303.72651827,0.000234,5]
[399541506,1766466647530,-231.28369723,0.00023639,2]
[399541507,1766466647541,-1300.0,0.00023644,7]
[399541508,1766466647551,-386.87667747,0.00023786,2]
[399541509,1766466647561,-150.0,0.00023836,2]
[399541510,1766466647571,-150.0,0.00023836,2]
[399541511,1766466647580,-150.0,0.00023836,2]
[399541512,1766466647590,-150.0,0.00023836,2]
[399541513,1766466647600,-150.0,0.00023836,2]
[399541514,1766466647610,-301.19,0.00023836,2]
[399541515,1766466647620,-150.27,0.00023836,2]
[399541516,1766466647630,-150.0,0.00023836,2]
[399541517,1766466647639,-150.46,0.00023836,2]
[399541518,1766466647649,-464.76,0.00023836,2]
[399541519,1766466647658,-464.76,0.00023836,2]
[399541520,1766466647668,-464.76,0.00023836,2]
[399541521,1766466647677,-464.76,0.00023836,2]
[399541522,1766466647687,-934.13,0.00023836,2]
[399541523,1766466647697,-1230.51917613,0.00024,2]
[399541524,1766466647707,-714.51873489,0.00024,2]
[399541525,1766466647717,-150.0,0.00024,2]
[399541526,1766466647727,-180.0,0.00024028,2]
[399541527,1766466647737,-500.0,0.0002411,2]
[399541528,1766466647746,-800.0,0.00024466,7]
[399541529,1766466647756,-1300.0,0.00024466,7]
[399541530,1766466647766,-1098.0,0.00024555,2]
[399541531,1766466647777,-152.0,0.00024577,5]
[399541532,1766466647787,-500.0,0.00024579,2]
[399541533,1766466647797,-500.0,0.00024579,2]
[399541534,1766466647806,-547.3467704,0.00024579,2]
[399541535,1766466647816,-500.0,0.00024579,2]
[399541536,1766466647826,-500.0,0.00024579,2]
[399541537,1766466647836,-436.38149996,0.00024579,2]
[399541538,1766466647845,-500.0,0.00024579,2]
[399541539,1766466647857,-500.0,0.00024579,2]
[399541540,1766466647866,-604.0,0.00024589,10]
[399541541,1766466647876,-180.03,0.00024591,2]
[399541542,1766466647885,-6930.8,0.00024648,2]
[399541543,1766466647894,-157.0,0.00024658,2]
[399541544,1766466647904,-157.0,0.00024658,2]
[399541545,1766466647914,-157.0,0.00024658,2]
[399541546,1766466647923,-156.47035527,0.00024658,2]
[399541547,1766466647933,-500.0,0.00024658,2]
[399541548,1766466647944,-157.0,0.00024658,2]
[399541549,1766466647953,-162.81323493,0.00024658,2]
[399541550,1766466647963,-157.0,0.00024658,2]
[399541551,1766466647972,-1000.0,0.00024658,2]
[399541552,1766466647982,-956.8,0.00024658,2]
[399541553,1766466647992,-150.0,0.00024658,2]
[399541554,1766466648002,-170.73,0.00024658,2]
[399541555,1766466648012,-150.0,0.00024658,2]
[399541556,1766466648023,-150.0,0.00024658,2]
[399541557,1766466648033,-150.0,0.00024658,2]
[399541558,1766466648043,-151.59,0.00024658,2]
[399541559,1766466648052,-150.0,0.00024658,2]
[399541560,1766466648063,-150.0,0.00024658,2]
[399541561,1766466648072,-150.0,0.00024658,2]
[399541562,1766466648082,-150.0,0.00024658,2]
[399541563,1766466648092,-170.7,0.00024658,2]
[399541564,1766466648102,-150.0,0.00024658,2]
[399541565,1766466648112,-439.56,0.00024658,2]
[399541566,1766466648122,-170.7,0.00024658,2]
[399541567,1766466648132,-219.1,0.00024658,2]
[399541568,1766466648141,-170.7,0.00024658,2]
[399541569,1766466648151,-464.86,0.00024658,2]
[399541570,1766466648160,-640.28,0.00024658,2]
[399541571,1766466648170,-464.76,0.00024658,2]
[399541572,1766466648179,-13295.0,0.0002468,3]
[399541573,1766466648188,-1335.39878039,0.00024732,2]
[399541574,1766466648198,-25000.0,0.00024738,7]
[399541575,1766466648208,-1300.0,0.0002474,7]
[399541576,1766466648217,-25000.0,0.00024747,7]
[399541577,1766466648226,-10889.1820457,0.00024759,2]
[399541578,1766466648236,-13243.731096,0.00024759,2]
[399541579,1766466648245,-400.0,0.0002477,2]
[399541580,1766466648260,-304949.77877794,0.000248,3]
[399541581,1766466648916,500.15,0.00022,30]
[399541582,1766466649070,-320.0,0.000248,3]
[399541583,1766466649086,-305.43973936,0.000248,3]
[399541584,1766466649100,-345.12203707,0.000248,3]
[399541585,1766466649123,-773.17359864,0.000248,3]
[399541586,1766466649315,-151.0,0.00015188,2]
[399541587,1766466649324,-1030.39263457,0.00017364,2]
[399541588,1766466649343,-4689.71639084,0.00017364,2]
[399541589,1766467249537,502.0,0.000226,120]
[399541590,1766467438360,999.0,0.00013673,3]
[399541606,1766467832121,-1785.61962821,0.00012318,2]
[399541607,1766467832134,-631.85540748,0.00012318,2]
[399541608,1766467832179,-668.79096431,0.00012318,2]
[399541609,1766467832189,-203.377,0.00012318,2]
[399541610,1766467832199,-251.0,0.00012318,2]
[399541611,1766467832209,-300.0,0.00012458,2]
[399541612,1766467832219,-2879.87181394,0.00012459,2]
[399541613,1766467832229,-1200.0,0.0001246,2]
[399541614,1766467832238,-488.18160352,0.0001249,2]
[399541615,1766467832248,-332.30632836,0.0001249,2]
[399541616,1766467832258,-150.0,0.00012558,2]
[399541617,1766467832268,-407.6376526,0.00012559,2]
[399541618,1766467832279,-311.56155089,0.00012559,2]
[399541619,1766467832289,-500.0,0.00012559,2]
[399541620,1766467832300,-500.0,0.00012559,2]
[399541621,1766467832313,-500.0,0.00012559,2]
[399541622,1766467832323,-500.0,0.00012559,2]
[399541623,1766467832337,-500.0,0.00012559,2]
[399541624,1766467832346,-500.0,0.00012559,2]
[399541625,1766467832356,-500.0,0.00012559,2]
[399541626,1766467832366,-500.0,0.00012559,2]
[399541627,1766467832376,-500.0,0.00012559,2]
[399541628,1766467832386,-500.0,0.00012559,2]
[399541629,1766467832396,-500.0,0.00012559,2]
[399541630,1766467832405,-500.0,0.00012559,2]
[399541631,1766467832415,-500.0,0.00012559,2]
[399541632,1766467832426,-500.0,0.00012559,2]
[399541633,1766467832436,-570.27624781,0.00012559,2]
[399541634,1766467832446,-500.0,0.00012559,2]
[399541635,1766467832455,-500.0,0.00012559,2]
[399541636,1766467832465,-500.0,0.00012559,2]
[399541637,1766467832476,-500.0,0.00012559,2]
[399541638,1766467832485,-500.0,0.00012559,2]
[399541639,1766467832499,-500.0,0.00012559,2]
[399541640,1766467832509,-500.0,0.00012559,2]
[399541641,1766467832519,-500.0,0.00012559,2]
[399541642,1766467832529,-500.0,0.00012559,2]
[399541643,1766467832542,-500.0,0.00012559,2]
[399541644,1766467832552,-500.0,0.00012559,2]
[399541645,1766467832562,-500.0,0.00012559,2]
[399541646,1766467832572,-500.0,0.00012559,2]
[399541647,1766467832581,-500.0,0.00012559,2]
[399541648,1766467832591,-500.0,0.00012559,2]
[399541649,1766467832602,-500.0,0.00012559,2]
[399541650,1766467832612,-500.0,0.00012559,2]
[399541651,1766467832622,-500.0,0.00012559,2]
[399541652,1766467832631,-500.0,0.00012559,2]
[399541653,1766467832641,-500.0,0.00012559,2]
[399541654,1766467832651,-500.0,0.00012559,2]
[399541655,1766467832660,-500.0,0.00012559,2]
[399541656,1766467832670,-500.0,0.00012559,2]
[399541657,1766467832680,-500.0,0.00012559,2]
[399541658,1766467832689,-500.0,0.00012559,2]
[399541659,1766467832699,-350.0,0.00012559,2]
[399541660,1766467832709,-500.0,0.00012559,2]
[399541661,1766467832718,-500.0,0.00012559,2]
[399541662,1766467832730,-493.53669788,0.00012559,2]
[399541663,1766467832740,-500.0,0.00012559,2]
[399541664,1766467832750,-30968.90491433,0.0001256,2]
[399541665,1766467832763,-67676.05638764,0.0001256,2]
[399541666,1766467832775,-999.0,0.0001256,2]
[399541667,1766467832787,-518.04655203,0.0001256,2]
[399541668,1766467832809,-344.54409876,0.0001256,2]
[399541677,1766467838120,-13584.63108994,0.0001256,2]
[399541678,1766467838179,-1341.69773257,0.0001256,2]
[399541679,1766467838190,-1260.0,0.0001256,2]
[399541680,1766467838201,-1118.10003,0.0001256,2]
[399541681,1766467838238,-16402.00640134,0.0001256,2]
[399541682,1766467838253,-10122.51712221,0.0001256,2]
[399541683,1766467838262,-150.99,0.00012562,2]
[399541684,1766467838271,-9999.99,0.00012562,2]
[399541685,1766467838281,-299.99,0.00012562,2]
[399541686,1766467838291,-9999.99,0.00012562,2]
[399541687,1766467838300,-9999.99,0.00012562,2]
[399541688,1766467838309,-500.0,0.00012562,2]
[399541689,1766467838320,-200.0,0.00012562,2]
[399541690,1766467838329,-200.0,0.00012562,2]
[399541691,1766467838340,-500.0,0.00012562,2]
[399541692,1766467838349,-500.0,0.00012562,2]
[399541693,1766467838359,-200.0,0.00012562,2]
[399541694,1766467838369,-151.0,0.00012562,2]
[399541695,1766467838379,-151.0,0.00012562,2]
[399541696,1766467838390,-151.0,0.00012562,2]
[399541697,1766467838399,-151.0,0.00012562,2]
[399541698,1766467838408,-151.0,0.00012562,2]
[399541699,1766467838418,-151.0,0.00012562,2]
[399541700,1766467838427,-151.0,0.00012562,2]
[399541701,1766467838437,-151.0,0.00012562,2]
[399541702,1766467838447,-151.0,0.00012562,2]
[399541704,1766467838456,-151.0,0.00012562,2]
[399541705,1766467838466,-151.0,0.00012562,2]
[399541707,1766467838477,-7173.93,0.00012569,2]
[399541709,1766467838487,-1000.0,0.0001259,2]
[399541711,1766467838501,-332.30632836,0.0001312,2]
[399541714,1766467838510,-1000.0,0.00013582,2]
[399541715,1766467838520,-300.0,0.0001367,2]
[399541718,1766467838530,-7003.88687071,0.00013671,2]
[399541720,1766467838541,-1680.0,0.00013672,2]
[399541721,1766467838551,-436.38149996,0.00013698,2]
[399541724,1766467838561,-500.0,0.00013698,2]
[399541725,1766467838575,-500.0,0.00013698,2]
[399541726,1766467838584,-500.0,0.00013698,2]
[399541727,1766467838595,-500.0,0.00013698,2]
[399541728,1766467838604,-500.0,0.00013698,2]
[399541729,1766467838614,-500.0,0.00013698,2]
[399541730,1766467838624,-500.0,0.00013698,2]
[399541731,1766467838633,-547.3467704,0.00013698,2]
[399541732,1766467838643,-516.48518836,0.00013698,2]
[399541733,1766467838652,-500.0,0.00013698,2]
[399541734,1766467838662,-500.0,0.00013698,2]
[399541735,1766467838671,-500.0,0.00013698,2]
[399541736,1766467838681,-500.0,0.00013698,2]
[399541737,1766467838690,-500.0,0.00013698,2]
[399541738,1766467838699,-500.0,0.00013698,2]
[399541739,1766467838708,-500.0,0.00013698,2]
[399541740,1766467838717,-500.0,0.00013698,2]
[399541741,1766467838726,-500.0,0.00013698,2]
[399541742,1766467838735,-500.0,0.00013698,2]
[399541743,1766467838744,-332.30632836,0.0001375,2]
[399541744,1766467838753,-1904.0,0.00013854,2]
[399541745,1766467838762,-247.65245469,0.00013881,2]
[399541746,1766467838771,-3104.05,0.00014133,2]
[399541747,1766467838779,-500.0,0.00014173,2]
[399541748,1766467838789,-500.11396209,0.00014173,2]
[399541749,1766467838798,-500.0,0.00014173,2]
[399541750,1766467838806,-547.27052173,0.00014173,2]
[399541751,1766467838815,-332.30632836,0.0001438,2]
[399541753,1766467838824,-151.0,0.00014632,2]
[399541754,1766467838834,-500.0,0.00014721,2]
[399541755,1766467838843,-1005.67621891,0.00014721,2]
[399541757,1766467838852,-720.0,0.00015002,2]
[399541759,1766467838866,-332.30632836,0.0001501,2]
[399541761,1766467838876,-224.38,0.00015171,2]
[399541763,1766467838886,-1000.0,0.00015279,2]
[399541765,1766467838895,-207.4,0.00015301,2]
[399541768,1766467838905,-332.30632836,0.0001564,2]
[399541770,1766467838914,-3816.45,0.00015973,2]
[399541771,1766467838923,-309.46072033,0.00016187,2]
[399541773,1766467838933,-5000.00688222,0.000162,5]
[399541775,1766467838942,-332.30632836,0.0001627,2]
[399541777,1766467838951,-250.0,0.00016276,2]
[399541778,1766467838962,-6930.8,0.00016438,2]
[399541780,1766467838971,-293.8977114,0.00016438,2]
[399541782,1766467838981,-600.0,0.00016438,2]
[399541783,1766467838990,-243.23874711,0.0001668,2]
[399541784,1766467838999,-168.01,0.00016712,2]
[399541785,1766467839008,-241.0,0.00016794,2]
[399541786,1766467839019,-926.9,0.00016822,2]
[399541787,1766467839028,-241.0,0.00016835,2]
[399541788,1766467839037,-488.1816035,0.00016892,2]
[399541789,1766467839047,-332.30632836,0.000169,2]
[399541790,1766467839056,-176.03337035,0.000169,2]
[399541791,1766467839066,-139054.08155486,0.000169,2]
[399541792,1766467839075,-704.59937694,0.000169,2]
[399541793,1766467839085,-463.07467042,0.000169,2]
[399541794,1766467839094,-798.7206205,0.000169,2]
[399541795,1766467839103,-203.14859758,0.000169,2]
[399541796,1766467839113,-397.76244075,0.00016916,2]
[399541797,1766467839122,-500.0,0.00016973,2]
[399541798,1766467839131,-500.0,0.00016973,2]